bitfinex/quotes_ETHUSD_20251107
["timestamp","ask_amount","ask_price","bid_price","bid_amount"]
[1762499493476,0.002,3360.9,3360.8,4.91331921]
[1762499503240,0.002,3360.9,3360.8,3.47538202]
[1762499503409,0.8798,3360.9,3360.7,3.79099999]
[1762499503608,0.1528,3360.8,3360.7,6.76657055]
[1762499504432,0.1528,3360.8,3360.7,3.79099999]
[1762499504853,0.634,3360.8,3360.7,3.79099999]
[1762499505006,0.634,3360.8,3360.7,6.76657055]
[1762499505206,0.148,3360.8,3360.7,6.76657055]
[1762499505407,0.148,3360.8,3360.7,7.25227055]
[1762499506545,0.148,3360.8,3360.7,7.71417055]
[1762499507238,0.148,3360.8,3360.7,7.25227055]
[1762499508144,0.148,3360.8,3360.7,3.46227056]
[1762499508841,0.5455,3360.8,3360.7,0.001]
[1762499509154,0.148,3360.8,3360.7,2.97657056]
[1762499509370,0.148,3360.8,3360.7,3.46227056]
[1762499509852,0.5455,3360.8,3360.7,2.97657056]
[1762499512456,0.148,3360.8,3360.7,2.97657056]
[1762499512757,0.5464,3360.8,3360.7,2.97657056]
[1762499514427,0.5464,3360.8,3360.7,0.001]
[1762499514760,0.5464,3360.8,3360.7,2.97557056]
[1762499518675,0.148,3360.8,3360.7,3.46127056]
[1762499518879,0.148,3360.8,3360.7,4.86751311]
[1762499521777,0.002,3360.9,3360.8,2.97548202]
[1762499521970,0.002,3360.9,3360.8,3.92308202]
[1762499526971,0.002,3360.9,3360.8,3.46118202]
[1762499528414,0.002,3361.3,3361.0,2.97524897]
[1762499528572,4.25908052,3361.1,3361.0,2.97524897]
[1762499528776,3.03848306,3362.0,3360.6,0.001]
[1762499529080,4.25908052,3361.1,3361.0,2.97530496]
[1762499529286,4.65658052,3361.1,3361.0,2.97530496]
[1762499530682,4.25908052,3361.1,3361.0,2.97530496]
[1762499531193,4.25908052,3361.1,3361.0,3.43580496]
[1762499532489,4.65658052,3361.1,3360.6,0.001]
[1762499532685,4.25908052,3360.7,3360.6,0.001]
[1762499533197,4.65658052,3360.7,3360.6,0.001]
[1762499538108,5.91629252,3360.7,3360.6,0.001]
[1762499538507,9.29736708,3360.7,3360.6,0.001]
[1762499539605,6.44106581,3360.7,3360.6,0.001]
[1762499541273,5.91629252,3360.7,3360.6,0.001]
[1762499543538,5.51879252,3360.7,3360.6,0.4615]
[1762499543922,5.51879252,3360.7,3360.6,3.4371591]
[1762499544127,5.51879252,3360.7,3360.6,4.58509747]
[1762499544128,1.259712,3360.7,3360.6,4.58509747]
[1762499545009,0.002,3360.9,3360.8,2.97548202]
[1762499545334,0.002,3360.9,3360.8,3.43598202]
[1762499545631,0.002,3360.9,3360.8,3.89638202]
[1762499550325,0.002,3360.9,3360.8,4.04438202]
[1762499550612,0.002,3360.9,3360.8,5.31354884]
[1762499554930,0.002,3360.9,3360.8,2.97548202]
[1762499555443,0.002,3360.9,3360.8,3.43598202]
[1762499559678,0.002,3360.9,3360.8,2.97548202]
[1762499559975,0.002,3360.9,3360.8,2.97648202]
[1762499560638,0.3995,3360.9,3360.8,2.97648202]
[1762499561570,0.002,3360.9,3360.8,3.95198202]
[1762499561874,0.002,3360.9,3360.8,4.94249504]
[1762499562765,0.002,3360.9,3360.8,4.44439504]
[1762499564462,0.002,3360.9,3360.8,3.96699504]
[1762499564971,0.002,3360.9,3360.8,4.44439504]
[1762499565673,0.002,3360.9,3360.8,3.96699504]
[1762499565877,0.002,3360.9,3360.8,2.97648202]
[1762499568079,0.002,3360.9,3360.8,3.45388202]
[1762499571280,0.002,3360.9,3360.8,3.45388202]
[1762499575093,0.002,3360.9,3360.8,2.97648202]
[1762499575474,0.002,3360.9,3360.8,3.45388202]
[1762499575883,0.002,3360.9,3360.8,3.95198202]
[1762499576159,0.002,3360.9,3360.8,4.74890883]
[1762499580903,0.002,3360.9,3360.8,0.001]
[1762499580904,0.006,3360.9,3360.8,0.001]
[1762499581206,0.3996,3360.9,3360.8,2.97648202]
[1762499581494,0.3996,3360.9,3360.8,0.001]
[1762499581995,0.3996,3360.9,3360.8,2.97648202]
[1762499582159,0.006,3360.9,3360.8,2.97648202]
[1762499582786,0.002,3360.9,3360.8,2.97648202]
[1762499583101,0.3995,3360.9,3360.8,2.97648202]
[1762499585294,0.002,3360.9,3360.8,3.45388202]
[1762499585623,0.002,3360.9,3360.8,4.64494543]
[1762499586901,0.002,3360.9,3360.8,4.14684543]
[1762499587083,0.002,3360.9,3360.8,2.97648202]
[1762499589635,0.002,3360.9,3360.8,3.45388202]
[1762499593447,0.002,3360.9,3360.8,2.97648202]
[1762499593643,0.3995,3360.9,3360.8,2.97648202]
[1762499594020,0.3995,3360.9,3360.8,0.001]
[1762499597333,0.81112496,3360.9,3360.8,0.001]
[1762499597528,0.3995,3360.9,3360.8,0.001]
[1762499599455,4.55169662,3360.9,3360.8,0.001]
[1762499600433,0.002,3360.9,3360.8,3.43798202]
[1762499600635,0.002,3360.9,3360.8,3.93338202]
[1762499600943,0.002,3360.9,3360.8,4.95180144]
[1762499601817,0.002,3360.9,3360.8,4.92204662]
[1762499602022,0.002,3360.9,3360.8,4.42664662]
[1762499602857,0.002,3360.9,3360.8,4.92204662]
[1762499610325,0.3995,3360.9,3360.8,0.9896646]
[1762499610659,0.3995,3360.9,3360.8,2.97648202]
[1762499611171,0.002,3360.9,3360.8,2.97648202]
[1762499615221,0.002,3360.9,3360.8,3.93338202]
[1762499627064,0.002,3360.9,3360.8,2.97648202]
[1762499629352,0.002,3360.9,3360.8,3.47628202]
[1762499630970,0.002,3360.9,3360.8,2.97648202]
[1762499633089,0.002,3360.9,3360.8,3.47628202]
[1762499634493,0.002,3360.9,3360.8,2.97648202]
[1762499637682,0.002,3360.9,3360.8,3.47628202]
[1762499638693,0.002,3360.9,3360.8,2.97648202]
[1762499639204,0.002,3360.9,3360.8,3.47628202]
[1762499639501,0.002,3360.9,3360.8,4.89920024]
[1762499640068,0.002,3360.9,3360.8,3.92240024]
[1762499640269,0.002,3360.9,3360.8,2.97648202]
[1762499640605,0.002,3360.9,3360.8,0.001]
[1762499640767,0.3995,3360.9,3360.8,0.001]
[1762499645187,0.002,3360.9,3360.8,0.001]
[1762499646875,0.3995,3360.9,3360.8,0.001]
[1762499649299,0.805004,3360.9,3360.8,0.001]
[1762499649676,5.47614783,3360.9,3360.8,0.001]
[1762499650278,5.59541605,3360.9,3360.8,0.001]
[1762499650576,5.15937771,3360.9,3360.8,0.001]
[1762499651573,2.18398422,3360.9,3360.8,0.001]
[1762499652085,1.77848022,3360.9,3360.8,0.001]
[1762499654007,0.51876822,3360.9,3360.8,0.001]
[1762499654194,0.3995,3360.9,3360.8,0.001]
[1762499661519,0.002,3360.9,3360.8,0.001]
[1762499661719,0.002,3360.9,3360.8,3.45518202]
[1762499661920,0.002,3360.9,3360.8,4.59513366]
[1762499668324,0.002,3360.9,3360.8,4.62488848]
[1762499669305,0.002,3360.9,3360.8,4.59513366]
[1762499669501,0.002,3360.9,3360.8,4.71435994]
[1762499670336,0.002,3360.9,3360.8,4.74411476]
[1762499671441,0.002,3360.9,3360.8,4.71435994]
[1762499674850,0.002,3360.9,3360.8,4.59513366]
[1762499683142,0.002,3360.9,3360.8,0.001]
[1762499683351,0.3995,3360.9,3360.8,2.97648202]
[1762499686647,0.3995,3360.9,3360.8,0.001]
[1762499686849,0.3995,3360.9,3360.8,2.97648202]
[1762499688539,0.002,3360.9,3360.8,2.97648202]
[1762499688894,3.37489349,3360.9,3360.6,0.001]
[1762499689060,4.2355482,3360.4,3360.2,0.001]
[1762499689276,4.2355482,3360.4,3359.2,0.001]
[1762499689277,0.405504,3360.1,3359.2,0.001]
[1762499689564,1.665216,3359.6,3359.2,0.001]
[1762499689762,9.25078225,3359.6,3359.2,0.001]
[1762499689968,9.79988225,3359.6,3359.2,0.001]
[1762499690125,3.38231464,3359.3,3359.2,0.001]
[1762499690472,9.33924807,3359.3,3359.2,0.001]
[1762499690656,9.79644807,3359.3,3359.2,0.001]
[1762499691243,10.15755748,3359.3,3359.2,0.001]
[1762499691634,4.23661126,3359.2,3358.9,0.001]
[1762499691829,4.64264707,3358.6,3358.5,0.001]
[1762499692068,4.64264707,3358.6,3358.3,0.001]
[1762499692069,1.665216,3358.4,3358.3,0.001]
[1762499692276,1.753416,3358.4,3358.3,0.001]
[1762499692446,2.32996928,3358.4,3358.3,0.001]
[1762499692655,5.30757766,3358.4,3358.3,0.001]
[1762499693779,2.32996928,3358.4,3358.3,0.001]
[1762499694469,5.30757766,3358.4,3358.3,0.001]
[1762499694984,2.32996928,3358.4,3358.3,0.001]
[1762499696415,1.37906528,3358.4,3358.3,0.001]
[1762499696569,0.002,3358.5,3358.4,2.97760838]
[1762499696881,0.002,3358.5,3358.4,3.45340838]
[1762499697242,0.002,3358.5,3358.4,3.92750838]
[1762499698389,0.002,3358.5,3358.4,3.45340838]
[1762499698689,0.002,3358.5,3358.4,4.91816485]
[1762499699364,0.002,3358.5,3358.4,5.00769648]
[1762499699566,0.002,3358.5,3358.4,5.18627256]
[1762499700364,0.002,3358.5,3358.4,5.15649648]
[1762499700601,1e-08,3358.9,3358.8,4.71276578]
[1762499700816,1e-08,3358.9,3358.8,6.3308121]
[1762499701113,1e-08,3358.9,3358.8,6.44983957]
[1762499702070,1e-08,3358.9,3358.8,7.04933957]
[1762499704108,1e-08,3358.9,3358.8,5.78962757]
[1762499705825,1e-08,3358.9,3358.8,10.83933956]
[1762499706901,1e-08,3359.2,3359.1,3.64568788]
[1762499707123,1e-08,3359.2,3359.1,10.5527022]
[1762499707287,1e-08,3359.2,3359.1,11.1756022]
[1762499708851,1e-08,3359.2,3359.1,7.38560221]
[1762499709050,1e-08,3359.2,3359.1,7.79110621]
[1762499709359,1e-08,3359.2,3359.1,17.0462093]
[1762499709820,0.007,3360.9,3360.8,3.64418202]
[1762499709821,1e-08,3360.9,3360.8,3.64418202]
[1762499710022,1e-08,3360.9,3360.8,4.00860022]
[1762499710258,1e-08,3360.9,3360.8,4.63070022]
[1762499710607,1e-08,3360.9,3360.8,4.00860022]
[1762499711131,1e-08,3360.9,3360.8,4.47970022]
[1762499713253,0.00200001,3360.9,3360.8,4.47970022]
[1762499715569,0.002,3361.6,3361.5,2.97486241]
[1762499715712,0.002,3361.6,3361.5,3.42526241]
[1762499715915,0.002,3361.6,3361.5,3.89636241]
[1762499716429,0.002,3361.6,3361.5,5.15607441]
[1762499717756,0.002,3362.7,3361.9,2.97450846]
[1762499717916,0.002,3362.7,3361.9,3.76739931]
[1762499718227,0.002,3362.7,3361.9,4.26824439]
[1762499719525,0.002,3362.7,3361.9,4.23849931]
[1762499720860,0.002,3362.7,3361.9,4.38649931]
[1762499721660,0.002,3362.7,3361.9,4.41624439]
[1762499723417,0.002,3362.7,3361.9,5.67595639]
[1762499726013,0.002,3362.7,3362.6,2.97388925]
[1762499726231,0.002,3362.7,3362.6,3.45402814]
[1762499726462,0.002,3362.7,3362.6,3.92512814]
[1762499726858,0.4907,3363.5,3363.4,2.97318189]
[1762499727299,0.5494,3363.5,3363.4,2.97318189]
[1762499728207,0.5494,3363.5,3363.0,2.9734967]
[1762499728408,0.0587,3363.1,3363.0,2.97353553]
[1762499728811,0.5451,3363.1,3363.0,2.97353553]
[1762499729105,0.0587,3363.1,3363.0,2.97353553]
[1762499729606,0.4864,3363.5,3362.9,0.02973623]
[1762499729607,0.4864,3363.5,3363.4,2.97318189]
[1762499730076,0.5494,3363.5,3363.4,2.97318189]
[1762499731609,0.5494,3363.5,3362.5,7.23501894]
[1762499731913,0.5494,3363.5,3362.5,0.4711]
[1762499731914,0.002,3363.4,3362.5,0.4711]
[1762499732212,0.002,3363.4,3363.3,2.9732703]
[1762499732512,0.5472,3363.4,3363.3,2.9732703]
[1762499734034,0.065,3363.4,3363.3,2.9732703]
[1762499734697,0.5472,3363.4,3363.3,2.9732703]
[1762499735683,0.065,3363.4,3363.3,2.9732703]
[1762499736393,0.002,3363.4,3363.3,4.49240708]
[1762499736592,0.002,3363.4,3363.3,4.52213978]
[1762499737098,0.002,3363.4,3363.3,4.49240708]
[1762499738018,0.002,3363.4,3363.3,5.75211908]
[1762499738226,0.002,3363.4,3363.3,6.15762308]
[1762499739254,1e-08,3363.9,3363.8,2.97282834]
[1762499739420,1e-08,3363.9,3363.8,4.05310351]
[1762499739614,1e-08,3363.9,3363.8,4.68070351]
[1762499741514,1e-08,3363.9,3363.8,3.71540351]
[1762499743057,0.005,3364.9,3364.8,2.97194484]
[1762499743555,0.5849,3364.9,3364.8,2.97194484]
[1762499745331,0.4236,3364.9,3364.8,2.97194484]
[1762499745534,0.1099,3366.0,3364.9,2.97185651]
[1762499745855,0.1099,3366.0,3365.8,2.97106185]
[1762499746530,0.1099,3366.0,3365.8,3.11906185]
[1762499750473,0.1099,3366.0,3365.8,0.148]
[1762499750647,0.41043438,3365.9,3365.4,2.97141324]
[1762499750850,0.005,3365.9,3365.1,3.11959719]
[1762499751171,0.005,3365.9,3365.3,2.97143975]
[1762499751471,0.43535293,3365.9,3365.3,2.97143975]
[1762499751974,0.43535293,3365.9,3365.3,2.97142406]
[1762499752173,0.43535293,3365.9,3365.1,3.11966775]
[1762499752174,0.005,3365.9,3365.1,3.11966775]
[1762499752471,0.005,3365.9,3365.3,2.97144818]
[1762499752673,0.005,3365.9,3364.9,0.148]
[1762499752979,0.005,3365.9,3365.2,2.97154076]
[1762499753138,0.005,3365.9,3365.3,2.97149807]
[1762499753337,0.005,3365.9,3365.4,0.02971414]
[1762499753553,0.005,3365.9,3365.5,2.97126717]
[1762499753773,0.005,3365.9,3365.5,2.97129352]
[1762499753937,0.005,3365.9,3365.1,0.3339]
[1762499754139,0.005,3365.9,3365.5,2.97127625]
[1762499754439,0.005,3365.9,3365.1,0.148]
[1762499754657,0.005,3365.9,3365.4,2.97139595]
[1762499754940,0.148,3365.7,3365.5,2.97132395]
[1762499755140,0.148,3365.7,3365.6,2.97123841]
[1762499755747,0.005,3365.9,3365.7,2.97112763]
[1762499755964,0.005,3365.9,3365.4,0.148]
[1762499756171,0.005,3365.9,3365.5,2.97126098]
[1762499756472,0.005,3365.9,3365.3,2.97144307]
[1762499756640,0.005,3365.9,3364.8,0.4817]
[1762499756641,0.148,3365.7,3365.2,2.97152555]
[1762499756976,0.148,3365.5,3365.0,3.119689]
[1762499757298,0.148,3365.5,3365.0,0.148]
[1762499757458,0.148,3365.5,3365.2,2.9715534]
[1762499757789,0.148,3365.5,3365.3,2.97149766]
[1762499758003,0.148,3365.5,3365.3,2.97142054]
[1762499759810,0.148,3365.5,3365.0,3.11976006]
[1762499760111,0.148,3365.5,3365.0,0.148]
[1762499760262,0.148,3365.5,3365.2,2.97157521]
[1762499760715,0.005,3365.9,3365.4,0.4931]
[1762499760868,0.153,3365.9,3365.7,2.97113657]
[1762499761066,0.153,3365.9,3365.8,0.02971061]
[1762499761281,0.153,3365.9,3365.8,3.00077246]
[1762499761492,0.153,3365.9,3365.8,3.49387246]
[1762499762207,0.153,3365.9,3365.8,3.46416185]
[1762499762499,0.005,3365.9,3365.8,3.94586185]
[1762499762791,0.005,3365.9,3365.8,4.78557051]
[1762499763196,0.005,3365.9,3365.8,4.81528112]
[1762499763395,0.005,3365.9,3365.8,4.66728112]
[1762499763766,0.005,3365.9,3365.8,4.63757051]
[1762499764689,0.005,3365.9,3365.8,0.4931]
[1762499764892,0.005,3365.9,3365.3,0.4817]
[1762499765063,0.005,3365.9,3365.5,2.97127199]
[1762499765265,0.005,3365.9,3365.7,2.97111271]
[1762499765479,0.005,3365.9,3364.8,0.4817]
[1762499765803,0.005,3365.9,3365.6,2.97115847]
[1762499766179,0.005,3365.9,3365.4,2.97134783]
[1762499766373,0.005,3365.9,3364.7,0.1859]
[1762499766374,0.005,3365.9,3365.3,2.97145168]
[1762499766599,0.005,3365.9,3365.2,2.97159158]
[1762499766808,0.005,3365.9,3365.2,0.34542916]
[1762499766994,0.007,3365.9,3365.1,0.4817]
[1762499767300,5.64494385,3365.9,3365.0,0.001]
[1762499767595,1.259712,3365.8,3365.0,0.001]
[1762499768214,4.23174516,3364.7,3364.6,0.001]
[1762499768416,4.63734321,3364.6,3363.1,0.1876]
[1762499768590,4.63734321,3364.6,3363.5,2.97307201]
[1762499768591,1.259712,3364.0,3363.5,2.97307201]
[1762499768793,1.259712,3364.0,3363.3,2.9732703]
[1762499769316,1.259712,3364.0,3363.2,0.3643877]
[1762499769317,1.259712,3363.5,3363.1,0.005]
[1762499769496,0.405504,3364.6,3363.1,0.005]
[1762499769497,1.259712,3364.0,3363.1,3.16433993]
[1762499769699,1.259712,3364.0,3363.4,0.4931]
[1762499770812,1.259712,3364.0,3363.2,0.79823399]
[1762499771029,1.259712,3364.0,3363.1,0.1909]
[1762499771321,1.259712,3364.5,3363.6,2.97295066]
[1762499771508,1.259712,3364.5,3363.7,3.00263862]
[1762499771708,1.259712,3364.5,3363.1,0.1909]
[1762499771709,5.63794385,3364.6,3363.8,2.97275959]
[1762499772219,1.259712,3364.5,3363.8,2.97275959]
[1762499772513,1.259712,3364.5,3363.8,3.61446189]
[1762499773015,1.259712,3364.5,3364.0,2.9726459]
[1762499773219,1.259712,3364.5,3363.8,0.6417023]
[1762499773406,0.148,3364.3,3363.8,3.76252786]
[1762499773718,0.148,3364.3,3363.8,0.7897023]
[1762499773915,0.148,3364.3,3363.8,0.148]
[1762499777011,1.259712,3364.5,3363.1,0.1909]
[1762499777012,1.259712,3364.0,3363.1,0.6622]
[1762499777217,0.148,3363.9,3363.3,0.148]
[1762499777523,0.148,3363.9,3363.3,3.12126303]
[1762499778211,0.148,3363.9,3363.3,0.82368997]
[1762499778419,0.148,3363.9,3363.3,3.79694453]
[1762499778724,0.148,3363.9,3363.3,0.148]
[1762499779294,1.259712,3363.4,3363.1,0.005]
[1762499779605,0.148,3363.3,3363.1,0.005]
[1762499782603,0.148,3363.3,3363.2,0.9367]
[1762499782940,0.46639191,3364.0,3363.2,3.93975381]
[1762499782941,0.148,3363.6,3363.2,3.93975381]
[1762499783137,0.148,3363.6,3363.5,0.4654]
[1762499784347,0.148,3363.6,3363.5,0.9367]
[1762499784940,0.148,3363.6,3363.5,0.4654]
[1762499787136,0.002,3364.3,3363.5,0.9367]
[1762499787338,0.002,3364.3,3363.6,2.97294436]
[1762499787647,0.002,3364.3,3363.7,2.97285997]
[1762499787946,0.002,3364.3,3363.8,2.97282144]
[1762499788111,0.002,3364.3,3363.8,0.4713]
[1762499788529,0.002,3364.3,3363.8,3.44412833]
[1762499788729,0.002,3364.3,3363.8,0.4713]
[1762499791443,0.002,3364.3,3363.8,1.19728492]
[1762499791744,0.002,3364.3,3363.8,0.72598492]
[1762499791912,0.002,3364.3,3363.6,0.4713]
[1762499792312,0.002,3364.3,3363.6,3.44425442]
[1762499792542,0.002,3364.3,3363.7,2.97288079]
[1762499792742,0.002,3364.3,3363.7,3.44418079]
[1762499793248,0.002,3364.3,3363.8,0.50102828]
[1762499793548,0.002,3364.3,3363.9,0.3473961]
[1762499793750,0.002,3364.3,3364.0,0.02972651]
[1762499795332,0.002,3364.3,3363.9,0.3473961]
[1762499795537,0.002,3364.3,3363.7,0.4713]
[1762499796426,0.002,3364.3,3363.7,3.44420344]
[1762499796751,0.002,3364.3,3363.5,0.84249577]
[1762499796940,0.002,3364.3,3363.3,4.26129999]
[1762499797146,0.148,3364.0,3363.5,0.148]
[1762499797742,0.148,3364.0,3363.5,0.6193]
[1762499797951,0.002,3364.3,3363.3,3.78999999]
[1762499798154,0.002,3364.3,3363.3,0.4713]
[1762499798155,0.148,3363.8,3363.3,0.4713]
[1762499798453,0.148,3363.8,3363.4,0.4713]
[1762499799414,0.148,3363.8,3363.4,3.44447668]
[1762499799621,0.148,3363.8,3363.4,0.4713]
[1762499799843,0.148,3363.8,3363.2,3.12132169]
[1762499799844,0.148,3363.8,3363.3,2.97326976]
[1762499800057,0.148,3363.8,3363.5,0.4537]
[1762499800646,0.148,3363.8,3363.3,1.11654982]
[1762499800848,0.148,3363.8,3363.4,0.4881]
[1762499801683,0.148,3363.8,3363.4,3.46127336]
[1762499801855,0.148,3363.8,3363.4,0.4881]
[1762499802052,0.148,3363.8,3363.5,0.4881]
[1762499805554,0.148,3363.8,3363.7,0.452]
[1762499807059,0.148,3363.8,3363.5,0.4881]
[1762499807261,0.148,3363.8,3363.3,0.001]
[1762499808032,2.97252462,3364.2,3363.3,0.001]
[1762499808370,0.148,3363.6,3363.3,0.001]
[1762499811030,0.148,3363.6,3363.5,3.4250935]
[1762499811233,0.15,3364.3,3363.5,1.51222355]
[1762499811437,0.15,3364.3,3364.2,0.452]
[1762499813071,0.15,3364.3,3363.9,0.4881]
[1762499813406,0.15,3364.3,3363.6,0.4881]
[1762499813573,0.002,3364.3,3363.6,0.4881]
[1762499813778,0.148,3364.0,3363.6,0.4881]
[1762499814264,0.148,3364.0,3363.9,0.452]
[1762499815179,0.148,3364.0,3363.9,0.9401]
[1762499815386,0.002,3364.3,3363.9,1.33438155]
[1762499815575,0.002,3364.3,3364.2,0.452]
[1762499815980,0.148,3364.2,3363.7,0.6361]
[1762499816372,0.148,3364.2,3363.8,0.4881]
[1762499817405,0.148,3364.2,3364.1,0.452]
[1762499817781,0.148,3364.2,3363.8,0.4881]
[1762499818102,0.002,3364.3,3364.1,0.6468]
[1762499818261,0.002,3364.3,3364.2,0.452]
[1762499819783,0.002,3364.3,3364.2,0.96982474]
[1762499819991,0.15,3364.3,3364.2,0.96982474]
[1762499820814,0.15,3364.3,3364.2,0.9401]
[1762499824003,0.15,3364.3,3364.2,0.452]
[1762499824202,0.15,3364.3,3363.9,0.4881]
[1762499824719,0.15,3364.3,3364.2,0.452]
[1762499825077,0.15,3364.3,3364.2,0.9401]
[1762499825707,0.002,3364.3,3364.2,0.96982474]
[1762499826004,0.002,3364.7,3364.5,2.97212597]
[1762499826186,0.002,3364.7,3364.6,1.07617246]
[1762499826374,0.002,3364.7,3364.6,4.68439396]
[1762499826569,0.002,3364.7,3364.6,1.71227246]
[1762499826784,0.002,3364.7,3364.6,0.6]
[1762499826987,0.002,3364.7,3364.6,1.0881]
[1762499830299,0.002,3364.7,3364.6,4.0602215]
[1762499830533,0.002,3364.7,3364.6,4.08994271]
[1762499831330,0.002,3364.7,3364.6,4.0602215]
[1762499831888,0.002,3364.7,3364.6,5.14246511]
[1762499842142,0.002,3364.7,3364.6,8.9324651]
[1762499844523,0.002,3364.7,3364.6,5.4722436]
[1762499844822,0.002,3364.7,3364.6,4.38999999]
[1762499845573,0.002,3364.7,3364.6,3.93799999]
[1762499846133,0.002,3364.7,3364.6,4.41539999]
[1762499846378,0.002,3364.7,3364.6,7.85062149]
[1762499846879,0.002,3364.7,3364.6,4.87849999]
[1762499847681,0.002,3364.7,3364.6,8.6357079]
[1762499847882,0.002,3364.7,3364.6,5.6635864]
[1762499848080,0.004,3364.7,3364.6,3.93799999]
[1762499848238,0.002,3364.7,3364.6,3.93799999]
[1762499848630,0.002,3364.7,3364.6,0.6254]
[1762499849980,0.002,3364.7,3364.6,3.5975215]
[1762499850290,0.002,3364.7,3364.6,4.09034271]
[1762499850435,0.002,3364.7,3364.6,4.79660633]
[1762499850642,0.002,3364.7,3364.6,4.76688512]
[1762499851687,0.002,3364.7,3364.6,0.148]
[1762499852239,0.002,3364.7,3364.6,0.6254]
[1762499852438,0.002,3364.7,3364.6,3.5975215]
[1762499852665,0.002,3364.7,3364.6,0.6254]
[1762499852969,0.002,3364.7,3364.6,0.148]
[1762499853270,0.002,3364.7,3364.6,0.6254]
[1762499853870,0.002,3364.7,3364.6,4.41539999]
[1762499854370,0.002,3364.7,3364.6,7.38752149]
[1762499854670,0.002,3364.7,3364.6,4.41539999]
[1762499855047,0.002,3364.7,3364.6,7.85062149]
[1762499855251,0.002,3364.7,3364.6,8.93290532]
[1762499857271,0.002,3364.7,3364.6,5.14290533]
[1762499859089,0.002,3364.7,3364.6,5.17262654]
[1762499859290,0.002,3364.7,3364.6,5.14290533]
[1762499865882,0.002,3364.7,3364.6,9.36813053]
[1762499866192,0.002,3365.0,3364.9,3.37736051]
[1762499866386,0.002,3365.0,3364.9,10.73809782]
[1762499866579,0.002,3365.0,3364.9,10.70837926]
[1762499866776,0.002,3365.0,3364.9,10.82741536]
[1762499867586,0.002,3365.0,3364.9,14.61741535]
[1762499867784,0.002,3365.0,3364.9,10.82741536]
[1762499872083,1e-08,3365.1,3365.0,8.7311842]
[1762499872282,4.24692249,3367.3,3365.0,8.7311842]
[1762499872283,1e-08,3365.9,3365.8,6.97076585]
[1762499872495,1e-08,3365.9,3365.8,8.07968834]
[1762499872806,1e-08,3365.9,3365.8,8.57968834]
[1762499873022,1e-08,3365.9,3365.8,10.34570538]
[1762499876105,1e-08,3365.9,3365.8,6.09878289]
[1762499879208,1e-08,3365.9,3365.8,14.74341738]
[1762499879431,0.005,3366.9,3366.8,2.97017939]
[1762499879598,0.005,3366.9,3366.8,3.42637939]
[1762499879798,0.005,3366.9,3366.8,5.01060696]
[1762499882209,1e-08,3366.9,3366.8,6.27031896]
[1762499882414,1e-08,3366.9,3366.8,6.82382296]
[1762499882631,1e-08,3366.9,3366.8,6.94278259]
[1762499883640,0.00106455,3367.9,3367.5,2.96954562]
[1762499883807,0.002,3367.6,3367.4,2.96963058]
[1762499884012,0.002,3367.6,3367.5,2.96956198]
[1762499884737,0.002,3367.6,3367.4,2.96962429]
[1762499884941,0.002,3367.6,3366.8,1.08422757]
[1762499885142,0.002,3366.9,3366.8,2.97017939]
[1762499886030,0.002,3366.9,3366.3,0.5]
[1762499886229,0.002,3366.9,3366.8,2.97017939]
[1762499887145,0.002,3366.9,3366.1,0.6987]
[1762499887350,0.002,3367.1,3366.2,0.1958412]
[1762499887527,0.002,3367.1,3366.8,2.97012667]
[1762499887726,0.002,3367.1,3366.2,3.16651122]
[1762499887727,0.002,3367.1,3366.9,2.970091]
[1762499888124,0.002,3367.0,3366.9,2.970091]
[1762499888353,0.002,3367.0,3366.8,2.97015965]
[1762499888527,0.002,3367.1,3366.9,2.97008217]
[1762499889045,0.002,3367.0,3366.9,2.97008217]
[1762499889354,0.002,3367.0,3366.8,2.97017534]
[1762499889553,0.002,3367.1,3366.8,2.97017534]
[1762499889718,0.002,3366.9,3366.7,2.97026627]
[1762499889919,0.002,3366.8,3366.7,2.97026762]
[1762499890747,0.002,3366.8,3366.3,0.5]
[1762499891065,0.002,3366.8,3366.7,2.97026762]
[1762499891527,0.002,3367.5,3366.7,0.96890267]
[1762499891727,1.259712,3367.7,3366.9,0.001]
[1762499891929,0.002,3367.0,3366.9,2.97109118]
[1762499893552,0.002,3367.0,3366.9,3.11909118]
[1762499893738,0.002,3367.0,3366.9,0.149]
[1762499894122,0.002,3367.0,3366.9,3.11909118]
[1762499896571,0.148,3367.5,3367.2,2.96977318]
[1762499896769,0.148,3367.5,3367.3,0.02969738]
[1762499897073,0.148,3367.5,3367.0,2.96992488]
[1762499897373,0.148,3367.5,3367.2,2.96976488]
[1762499897730,0.002,3367.3,3367.0,2.96992488]
[1762499898034,0.002,3367.3,3367.1,2.96990677]
[1762499898457,1.263712,3367.2,3366.9,0.001]
[1762499898769,0.002,3367.0,3366.9,0.001]
[1762499899148,0.002,3367.0,3366.9,0.03070091]
[1762499899555,4.24692249,3367.5,3366.9,3.00070494]
[1762499899732,0.002,3367.0,3366.9,3.00070494]
[1762499899932,0.002,3367.0,3366.9,0.03070091]
[1762499900355,0.002,3367.0,3366.9,0.001]
[1762499901835,0.002,3367.0,3366.9,2.97109118]
[1762499902178,1.259712,3367.4,3366.9,2.97101671]
[1762499902475,0.002,3367.6,3366.9,2.97105842]
[1762499902634,1.259712,3367.4,3366.9,2.97105842]
[1762499902834,1.259712,3367.4,3367.0,2.96998103]